bitfinex-derivatives/quotes_BTCF0:USTF0_20241120
["timestamp","ask_amount","ask_price","bid_price","bid_amount"]
[1732120809137,0.00160106,93744.0,93740.0,0.053282]
[1732120809326,0.053287,93732.0,93724.0,0.053291]
[1732120809535,0.3608,93741.0,93725.0,0.414091]
[1732120809835,0.053288,93731.0,93725.0,0.38450534]
[1732120810133,0.414082,93741.0,93725.0,0.38450534]
[1732120810324,0.01032038,93740.0,93739.0,0.053283]
[1732120810524,0.00160106,93744.0,93743.0,0.053281]
[1732120811332,0.00160106,93744.0,93737.0,0.18676]
[1732120811832,0.00160106,93744.0,93739.0,0.053283]
[1732120812021,0.00160106,93744.0,93737.0,0.02427685]
[1732120812232,0.00160106,93744.0,93733.0,0.36232]
[1732120812233,0.053285,93736.0,93733.0,0.3608]
[1732120812424,0.01025704,93735.0,93733.0,0.3608]
[1732120812630,0.06354304,93734.0,93733.0,0.3608]
[1732120813026,0.00160106,93744.0,93730.0,0.02131718]
[1732120813235,0.3608,93735.0,93723.0,0.19107162]
[1732120813431,0.3608,93737.0,93728.0,0.053289]
[1732120813632,0.3608,93737.0,93719.0,0.078]
[1732120813633,0.053288,93731.0,93722.0,0.34347162]
[1732120813939,0.3608,93737.0,93724.0,0.19107162]
[1732120814133,0.01027396,93736.0,93724.0,0.19107162]
[1732120814330,0.05329,93727.0,93724.0,0.19107162]
[1732120814930,0.3608,93737.0,93725.0,0.19107162]
[1732120815137,0.053285,93735.0,93721.0,0.19107162]
[1732120815338,0.053286,93734.0,93718.0,0.19267218]
[1732120815533,0.16711667,93736.0,93718.0,0.00160056]
[1732120815534,0.053294,93719.0,93718.0,0.00160056]
[1732120815746,0.01017503,93719.0,93708.0,0.19107162]
[1732120815933,0.16711667,93714.0,93704.0,0.19107162]
[1732120816133,0.01017503,93713.0,93704.0,0.19107162]
[1732120816442,0.3608,93716.0,93700.0,0.053305]
[1732120816443,0.053304,93704.0,93700.0,0.053305]
[1732120816638,0.3608,93716.0,93699.0,0.02131186]
[1732120816941,0.3608,93716.0,93709.0,0.0533]
[1732120816942,0.053298,93712.0,93709.0,0.0533]
[1732120817139,0.3608,93716.0,93704.0,0.19107162]
[1732120817343,0.3608,93716.0,93702.0,0.0745]
[1732120817344,0.053303,93704.0,93703.0,0.19107162]
[1732120817638,0.16711667,93723.0,93702.0,0.0745]
[1732120817639,0.3608,93712.0,93702.0,0.26557162]
[1732120817838,0.3608,93712.0,93711.0,0.053299]
[1732120818227,0.3608,93712.0,93707.0,0.053301]
[1732120818228,0.0533,93710.0,93707.0,0.053301]
[1732120818432,0.3608,93712.0,93706.0,0.19107162]
[1732120818732,0.414098,93712.0,93711.0,0.19108276]
[1732120818935,0.414098,93712.0,93707.0,0.19108276]
[1732120818936,0.053301,93708.0,93707.0,0.19108276]
[1732120819137,0.3608,93712.0,93702.0,0.09887974]
[1732120819331,0.3608,93712.0,93711.0,0.053299]
[1732120819534,0.0533,93709.0,93703.0,0.25354925]
[1732120819739,0.3608,93712.0,93703.0,0.19106371]
[1732120819931,0.053303,93705.0,93703.0,0.19106371]
[1732120820131,0.053303,93705.0,93704.0,0.053303]
[1732120821037,0.053304,93703.0,93702.0,0.09887974]
[1732120821843,0.3608,93712.0,93702.0,0.09887974]
[1732120821844,0.053301,93708.0,93702.0,0.09887974]
[1732120822148,0.053301,93708.0,93704.0,0.053303]
[1732120822345,0.053301,93708.0,93705.0,0.19099549]
[1732120822736,0.053301,93708.0,93706.0,0.053301]
[1732120822931,0.3608,93712.0,93711.0,0.053299]
[1732120823139,0.3608,93712.0,93702.0,0.26599641]
[1732120823140,0.053296,93717.0,93713.0,0.053298]
[1732120823332,0.053296,93717.0,93702.0,0.26599641]
[1732120823333,0.053286,93734.0,93712.0,0.19094355]
[1732120823533,0.18676,93740.0,93712.0,0.19094355]
[1732120823534,0.053293,93722.0,93720.0,0.053294]
[1732120823736,0.053289,93728.0,93725.0,0.053291]
[1732120824044,0.053285,93736.0,93725.0,0.053291]
[1732120824248,0.053286,93735.0,93725.0,0.07732836]
[1732120824449,0.38645538,93744.0,93725.0,0.02403736]
[1732120824751,0.053294,93720.0,93717.0,0.3608]
[1732120824950,0.053295,93718.0,93717.0,0.38509413]
[1732120825347,0.053295,93718.0,93717.0,0.02429413]
[1732120825544,0.053293,93723.0,93716.0,0.053296]
[1732120825736,0.053293,93722.0,93712.0,0.19075918]
[1732120825939,0.053293,93722.0,93721.0,0.19093596]
[1732120826140,0.053293,93722.0,93712.0,0.19075918]
[1732120826141,0.053294,93720.0,93717.0,0.3608]
[1732120826454,0.053296,93717.0,93713.0,0.37130527]
[1732120826743,0.053287,93733.0,93717.0,0.02132385]
[1732120826744,0.053293,93721.0,93717.0,0.02132385]
[1732120827252,0.053289,93729.0,93717.0,0.3608]
[1732120827445,0.053289,93729.0,93717.0,0.31800827]
[1732120827648,0.053292,93723.0,93722.0,0.19099775]
[1732120827858,0.053298,93713.0,93712.0,0.34165078]
[1732120828243,0.053298,93713.0,93712.0,0.02364251]
[1732120828535,0.053298,93713.0,93711.0,0.31800827]
[1732120829037,0.053298,93712.0,93707.0,0.07462485]
[1732120829237,0.053299,93711.0,93708.0,0.31282243]
[1732120829442,0.053299,93711.0,93709.0,0.31282243]
[1732120829648,0.053299,93711.0,93710.0,0.31282243]
[1732120829845,0.053294,93721.0,93710.0,0.31282243]
[1732120830043,0.05329,93727.0,93713.0,0.31843801]
[1732120830351,0.05329,93727.0,93710.0,0.053299]
[1732120830352,0.053291,93725.0,93723.0,0.19107447]
[1732120830546,0.053291,93725.0,93717.0,0.13504815]
[1732120830547,0.3608,93724.0,93717.0,0.13504815]
[1732120830754,0.58121167,93718.0,93698.0,0.31843942]
[1732120830939,0.58121167,93718.0,93697.0,0.31843942]
[1732120830940,0.053306,93698.0,93697.0,0.31843942]
[1732120831137,0.3608,93708.0,93697.0,0.31850378]
[1732120831344,0.053302,93706.0,93696.0,0.31850378]
[1732120831648,0.3608,93708.0,93694.0,0.31850378]
[1732120831649,0.053308,93695.0,93694.0,0.31850378]
[1732120831851,0.053308,93695.0,93694.0,0.31228729]
[1732120832145,0.22041167,93718.0,93694.0,0.31228729]
[1732120832146,0.3608,93707.0,93694.0,0.31228729]
[1732120832447,0.3608,93707.0,93696.0,0.31843485]
[1732120832647,0.053298,93713.0,93697.0,0.31843485]
[1732120832847,0.053298,93713.0,93696.0,0.31843485]
[1732120832848,0.053305,93701.0,93696.0,0.31843485]
[1732120833058,0.3608,93707.0,93697.0,0.31843485]
[1732120833356,0.053303,93705.0,93697.0,0.31843485]
[1732120833538,0.3608,93718.0,93716.0,0.053296]
[1732120833742,0.3608,93718.0,93699.0,0.31843485]
[1732120833743,0.3608,93718.0,93717.0,0.053296]
[1732120834275,0.3608,93718.0,93711.0,0.16711667]
[1732120834276,0.3608,93718.0,93713.0,0.053298]
[1732120834552,0.3608,93718.0,93708.0,0.0808]
[1732120834553,0.053299,93711.0,93709.0,0.29543485]
[1732120834751,0.0533,93710.0,93703.0,0.38212885]
[1732120834950,0.0533,93710.0,93704.0,0.31201794]
[1732120835254,0.3608,93718.0,93705.0,0.31064386]
[1732120835448,0.3608,93718.0,93711.0,0.16711667]
[1732120835646,0.3608,93718.0,93717.0,0.053296]
[1732120836146,0.053291,93725.0,93711.0,0.16711667]
[1732120836147,0.053291,93725.0,93721.0,0.053293]
[1732120836450,0.053287,93733.0,93727.0,0.05329]
[1732120836755,0.00160106,93744.0,93735.0,0.053285]
[1732120836756,0.3608,93736.0,93735.0,0.053285]
[1732120837150,0.3608,93736.0,93730.0,0.053288]
[1732120837341,0.3608,93736.0,93726.0,0.0774]
[1732120837556,0.3608,93736.0,93732.0,0.053287]
[1732120837758,0.3608,93736.0,93726.0,0.0774]
[1732120838055,0.3608,93736.0,93734.0,0.053286]
[1732120838248,0.3608,93736.0,93735.0,0.053285]
[1732120838447,0.053285,93735.0,93730.0,0.053288]
[1732120838651,0.3608,93736.0,93726.0,0.0774]
[1732120838847,0.3608,93736.0,93732.0,0.053287]
[1732120839053,0.3608,93736.0,93727.0,0.05329]
[1732120839454,0.3608,93736.0,93732.0,0.053287]
[1732120839657,0.3608,93736.0,93726.0,0.10145764]
[1732120839960,0.053288,93731.0,93728.0,0.053289]
[1732120840162,0.3608,93736.0,93726.0,0.10145764]
[1732120840459,0.05329,93727.0,93726.0,0.0774]
[1732120840653,0.05329,93727.0,93726.0,0.38947337]
[1732120842448,0.84799667,93727.0,93726.0,0.31187923]
[1732120842650,0.053295,93718.0,93717.0,0.38251017]
[1732120842856,0.52791667,93718.0,93703.0,0.38251017]
[1732120843050,0.053298,93714.0,93705.0,0.053302]
[1732120843358,0.053299,93712.0,93710.0,0.053299]
[1732120843655,0.053299,93712.0,93711.0,0.31164711]
[1732120843858,0.053299,93712.0,93711.0,0.31164392]
[1732120844457,0.053299,93712.0,93711.0,0.332968]
[1732120845256,0.053299,93712.0,93711.0,0.31164392]
[1732120845457,0.053299,93712.0,93701.0,0.02404224]
[1732120845458,0.053299,93711.0,93701.0,0.38251017]
[1732120845759,0.053303,93704.0,93703.0,0.053304]
[1732120846052,0.053303,93704.0,93703.0,0.37013315]
[1732120846249,0.3608,93707.0,93703.0,0.31682915]
[1732120846444,0.3608,93707.0,93706.0,0.053302]
[1732120846644,0.053298,93714.0,93706.0,0.31664944]
[1732120846859,0.053298,93712.0,93711.0,0.053299]
[1732120847662,0.053298,93712.0,93699.0,0.38251017]
[1732120847663,0.053305,93700.0,93699.0,0.38251017]
[1732120847956,0.053305,93700.0,93699.0,0.3169414]
[1732120848153,0.33023274,93700.0,93699.0,0.3169414]
[1732120849060,0.27692774,93700.0,93699.0,0.3702474]
[1732120849761,0.27692774,93700.0,93699.0,0.2719414]
[1732120850246,0.33023274,93700.0,93699.0,0.2719414]
[1732120850860,0.33023274,93700.0,93696.0,0.02132408]
[1732120850861,0.053307,93697.0,93696.0,0.02132408]
[1732120851258,0.33023474,93697.0,93696.0,0.02132408]
[1732120851761,0.33023474,93697.0,93696.0,0.07463208]
[1732120852162,0.33023474,93697.0,93696.0,0.053308]
[1732120852662,0.27692774,93697.0,93696.0,0.053308]
[1732120853046,0.27692774,93697.0,93696.0,0.46042329]
[1732120853254,0.27692774,93697.0,93696.0,0.07791312]
[1732120854248,0.3608,93719.0,93701.0,0.053304]
[1732120854447,0.3608,93719.0,93715.0,0.053296]
[1732120854957,0.414095,93719.0,93715.0,0.053296]
[1732120855250,0.414095,93719.0,93705.0,0.3608]
[1732120855251,0.3608,93719.0,93718.0,0.053295]
[1732120856061,0.414094,93719.0,93714.0,0.38248789]
[1732120856261,0.3608,93719.0,93713.0,0.38248789]
[1732120856563,0.3608,93719.0,93718.0,0.053295]
[1732120857262,0.414084,93737.0,93707.0,0.053301]
[1732120857263,0.38542319,93737.0,93717.0,0.38248789]
[1732120857462,0.38542319,93737.0,93713.0,0.3608]
[1732120857463,0.053287,93732.0,93721.0,0.38248789]
[1732120857657,0.053287,93732.0,93728.0,0.053289]
[1732120858162,0.053287,93732.0,93722.0,0.38248789]
[1732120858365,0.16711667,93734.0,93722.0,0.38248789]
[1732120858668,0.053294,93720.0,93719.0,0.38248789]
[1732120858960,0.053296,93716.0,93715.0,0.38248789]
[1732120859163,0.053294,93720.0,93718.0,0.053295]
[1732120859350,0.3608,93726.0,93713.0,0.3608]
[1732120859552,0.053296,93716.0,93713.0,0.414097]
[1732120860062,0.3608,93726.0,93712.0,0.04580378]
[1732120860266,0.16711667,93713.0,93703.0,0.0799]
[1732120860459,0.16711667,93713.0,93691.0,0.46298789]
[1732120860460,0.16711667,93704.0,93688.0,0.00160108]
[1732120860767,0.3608,93697.0,93688.0,0.00160108]
[1732120860965,0.053312,93689.0,93688.0,0.02550726]
[1732120861165,0.053312,93689.0,93688.0,0.00160108]
[1732120861363,0.3608,93697.0,93688.0,0.00160108]
[1732120861572,0.053309,93693.0,93688.0,0.00160108]
[1732120861768,0.3608,93697.0,93688.0,0.00160108]
[1732120861962,0.053311,93691.0,93688.0,0.00160108]
[1732120862262,0.053308,93696.0,93688.0,0.02292118]
[1732120862461,0.053309,93694.0,93688.0,0.02292118]
[1732120862762,0.3608,93697.0,93688.0,0.02292118]
[1732120862763,0.414112,93689.0,93688.0,0.02292118]
[1732120863463,0.414112,93689.0,93688.0,0.00160108]
[1732120863668,0.734312,93689.0,93688.0,0.00160108]
[1732120863872,0.734312,93689.0,93681.0,0.00013368]
[1732120863873,0.053316,93682.0,93681.0,0.00013368]
[1732120864168,0.58123267,93682.0,93681.0,0.00013368]
[1732120864362,0.053317,93680.0,93651.0,0.38248789]
[1732120864571,0.053317,93680.0,93650.0,0.00160147]
[1732120864572,0.3608,93656.0,93652.0,0.31168912]
[1732120864766,0.3608,93656.0,93653.0,0.31853667]
[1732120865261,0.3608,93656.0,93650.0,0.41911934]
[1732120865467,0.00011567,93655.0,93650.0,0.41911934]
[1732120865767,0.00011567,93655.0,93650.0,0.10058267]
[1732120867956,0.053332,93654.0,93650.0,0.10058267]
[1732120868160,0.053332,93654.0,93653.0,0.02133704]
[1732120868359,0.00011567,93655.0,93653.0,0.02133704]
[1732120868660,0.053333,93651.0,93650.0,0.00160147]
[1732120869973,0.3608,93654.0,93650.0,0.00160147]
[1732120870963,0.053333,93651.0,93650.0,0.00160147]
[1732120871165,0.3608,93654.0,93650.0,0.00160147]
[1732120871370,0.053333,93651.0,93650.0,0.00160147]
[1732120872070,0.3608,93654.0,93650.0,0.48743667]
[1732120872267,0.00011567,93655.0,93654.0,0.053331]
[1732120872670,0.00011567,93655.0,93654.0,0.373651]
[1732120872976,0.00011567,93655.0,93654.0,0.734451]
[1732120873161,0.3608,93675.0,93654.0,0.68112]
[1732120873360,0.3608,93675.0,93665.0,0.3608]
[1732120873571,0.053318,93678.0,93671.0,0.053321]
[1732120873764,0.3608,93683.0,93671.0,0.053321]
[1732120873966,0.005,93699.0,93675.0,0.16711667]
[1732120874171,0.053305,93700.0,93667.0,0.16711667]
[1732120874372,0.16711667,93699.0,93667.0,0.48565334]
[1732120874572,0.053315,93684.0,93667.0,0.48565334]
[1732120874778,0.16711667,93699.0,93676.0,0.053319]
[1732120875267,0.05332,93674.0,93673.0,0.3608]
[1732120875469,0.05332,93674.0,93665.0,0.02448126]
[1732120875470,0.053325,93666.0,93665.0,0.02448126]
[1732120875669,0.053319,93676.0,93658.0,0.1856]
[1732120875866,0.053322,93672.0,93658.0,0.1856]
[1732120876072,0.0804,93680.0,93664.0,0.02133704]
[1732120876073,0.053322,93670.0,93664.0,0.02133704]
[1732120876274,0.0804,93680.0,93664.0,0.02133704]
[1732120876275,0.16711667,93673.0,93664.0,0.02133704]
[1732120876471,0.053324,93667.0,93664.0,0.02133704]
[1732120876668,0.3608,93666.0,93655.0,0.3608]
[1732120876865,0.3608,93677.0,93655.0,0.3608]
[1732120876866,0.05333,93656.0,93655.0,0.3608]
[1732120877467,0.05333,93656.0,93653.0,0.02454186]
[1732120877670,0.05333,93656.0,93644.0,0.00011593]
[1732120878061,0.16711667,93659.0,93644.0,0.00011593]
[1732120878267,0.16711667,93659.0,93646.0,0.053336]
[1732120878664,0.053328,93661.0,93648.0,0.053334]
[1732120879062,0.3608,93665.0,93644.0,0.00011593]
[1732120879292,0.3608,93665.0,93646.0,0.053335]
[1732120879293,0.38443533,93665.0,93646.0,0.053335]
[1732120879467,0.053329,93659.0,93646.0,0.053335]
[1732120879668,0.053329,93659.0,93649.0,0.01033703]
[1732120880077,0.3608,93656.0,93649.0,0.01033703]
[1732120880574,0.3608,93656.0,93644.0,0.00011593]
[1732120880575,0.053337,93645.0,93644.0,0.00011593]
[1732120880881,0.414137,93645.0,93644.0,0.00011593]
[1732120881676,0.053337,93645.0,93644.0,0.00011593]
[1732120882874,0.053323,93669.0,93644.0,0.00011593]
[1732120882875,0.38505098,93656.0,93644.0,0.00011593]
[1732120883086,0.02425098,93656.0,93655.0,0.053331]
[1732120883277,0.005,93672.0,93655.0,0.053331]
[1732120883278,0.005,93678.0,93663.0,0.053326]
[1732120883483,0.053322,93671.0,93663.0,0.053326]
[1732120884185,0.3608,93679.0,93663.0,0.053326]
[1732120885184,0.005,93686.0,93685.0,0.053314]
[1732120885385,0.16711667,93686.0,93672.0,0.3608]
[1732120885578,0.3608,93690.0,93672.0,0.3608]
[1732120885776,0.3608,93690.0,93686.0,0.053313]
[1732120886080,0.3608,93690.0,93672.0,0.3608]
[1732120886081,0.3608,93690.0,93687.0,0.053313]
[1732120886471,0.3608,93690.0,93672.0,0.3608]
[1732120886989,0.053317,93679.0,93673.0,0.05332]
[1732120887171,0.3608,93690.0,93672.0,0.3608]
[1732120887376,0.053316,93682.0,93676.0,0.053319]
[1732120887577,0.3608,93690.0,93672.0,0.3608]
[1732120888081,0.05332,93675.0,93672.0,0.3608]
[1732120888275,0.16711667,93684.0,93672.0,0.3608]
[1732120888580,0.05332,93674.0,93672.0,0.3608]
[1732120888781,0.3608,93690.0,93672.0,0.3608]
[1732120888985,0.053314,93686.0,93673.0,0.05332]
[1732120889193,0.053314,93685.0,93678.0,0.053318]
[1732120889377,0.053319,93676.0,93672.0,0.3608]
[1732120889582,0.414111,93690.0,93672.0,0.3608]
[1732120889583,0.053321,93673.0,93672.0,0.3608]
[1732120889888,0.053312,93689.0,93672.0,0.3608]
[1732120889889,0.16711667,93693.0,93680.0,0.053316]
[1732120890085,0.053313,93686.0,93680.0,0.053316]
[1732120890590,0.053313,93686.0,93672.0,0.3608]
[1732120890591,0.16711667,93693.0,93675.0,0.053319]
[1732120890978,0.053312,93689.0,93675.0,0.053319]
[1732120891195,0.053316,93682.0,93676.0,0.053319]
[1732120891680,0.053316,93681.0,93678.0,0.053318]
[1732120891878,0.053316,93681.0,93672.0,0.3608]
[1732120891879,0.053316,93681.0,93672.0,0.61471362]
[1732120892078,0.16711667,93693.0,93672.0,0.3608]
[1732120892285,0.053321,93673.0,93672.0,0.3608]
[1732120892479,0.053321,93673.0,93668.0,0.25391362]
[1732120892789,0.053326,93664.0,93663.0,0.27829169]
[1732120892980,0.053326,93664.0,93660.0,0.25391362]
[1732120893184,0.3608,93665.0,93659.0,0.053328]
[1732120893185,0.053327,93663.0,93659.0,0.053328]
[1732120893483,0.3608,93665.0,93659.0,0.053328]
[1732120893681,0.053329,93660.0,93658.0,0.25391362]
[1732120894078,0.053328,93660.0,93659.0,0.25391362]
[1732120894297,0.053331,93654.0,93653.0,0.25391362]
[1732120894512,0.053331,93654.0,93650.0,0.02430654]
[1732120894513,0.053332,93653.0,93650.0,0.02430654]
[1732120894676,0.053333,93652.0,93651.0,0.3608]
[1732120894881,0.3608,93664.0,93656.0,0.05333]
[1732120895084,0.3608,93664.0,93652.0,0.053332]
[1732120895284,0.053328,93660.0,93657.0,0.05333]
[1732120895485,0.3608,93675.0,93651.0,0.3608]
[1732120895486,0.02427262,93666.0,93651.0,0.3608]
[1732120895682,0.3608,93675.0,93663.0,0.053326]
[1732120895884,0.3608,93675.0,93654.0,0.16711667]
[1732120896184,0.3608,93675.0,93651.0,0.3608]
[1732120896185,0.073,93681.0,93652.0,0.31853667]
[1732120896377,0.073,93681.0,93653.0,0.31853667]
[1732120896378,0.16711667,93673.0,93653.0,0.31853667]
[1732120896577,0.3608,93670.0,93651.0,0.67933667]
[1732120896781,0.053324,93668.0,93654.0,0.31853667]
[1732120896987,0.053324,93668.0,93652.0,0.30611703]
[1732120896988,0.053324,93668.0,93662.0,0.053327]
[1732120897595,0.3608,93670.0,93653.0,0.31853667]
[1732120897782,0.053332,93653.0,93651.0,0.67933667]
[1732120898086,0.053327,93661.0,93653.0,0.053332]
[1732120898288,0.16711667,93664.0,93653.0,0.053332]
[1732120898289,0.053328,93660.0,93653.0,0.053332]
[1732120898595,0.053328,93660.0,93654.0,0.053331]
[1732120898978,0.053325,93665.0,93651.0,0.3608]
[1732120899275,0.52791667,93673.0,93651.0,0.3608]
[1732120899681,0.52791667,93673.0,93652.0,0.07466375]
[1732120899682,0.053331,93656.0,93652.0,0.07466375]
[1732120899886,0.3608,93665.0,93652.0,0.02133175]
[1732120899887,0.053328,93661.0,93652.0,0.02133175]
[1732120900195,0.053331,93656.0,93652.0,0.02133175]
[1732120900880,0.16711667,93664.0,93652.0,0.02133175]
[1732120900881,0.053332,93654.0,93652.0,0.02133175]
[1732120901091,0.16711667,93664.0,93649.0,0.31853667]
[1732120901395,0.053334,93649.0,93648.0,0.02422174]
[1732120901588,0.3608,93653.0,93644.0,0.00011593]
[1732120902093,0.053335,93647.0,93644.0,0.00011593]
[1732120902291,0.414132,93653.0,93644.0,0.00011593]
[1732120902482,0.414132,93653.0,93652.0,0.053333]
[1732120902483,0.3608,93653.0,93652.0,0.053333]
[1732120902684,0.3608,93662.0,93647.0,0.31853667]
[1732120902879,0.053328,93660.0,93656.0,0.05333]
[1732120903183,0.16711667,93674.0,93648.0,0.31853667]
[1732120903379,0.3608,93677.0,93659.0,0.3608]
[1732120903582,0.3608,93677.0,93664.0,0.053326]
[1732120904186,0.3608,93677.0,93659.0,0.3608]
[1732120904590,0.053322,93671.0,93667.0,0.053324]
[1732120904892,0.3608,93677.0,93659.0,0.3608]
[1732120904893,0.3608,93677.0,93670.0,0.053322]
[1732120905193,0.209513,93687.0,93659.0,0.3608]
[1732120905194,0.52791667,93692.0,93669.0,0.3608]
[1732120905393,0.053315,93683.0,93677.0,0.414118]
[1732120905786,0.053315,93683.0,93678.0,0.053318]
[1732120906681,0.52791667,93692.0,93686.0,0.053313]
[1732120906682,0.43860594,93692.0,93686.0,0.053313]
[1732120906882,0.41411,93692.0,93686.0,0.053313]
[1732120907079,0.00160172,93696.0,93695.0,0.053308]
[1732120907286,0.00160172,93696.0,93695.0,0.414108]
[1732120908096,0.00160172,93696.0,93686.0,0.3608]
[1732120908097,0.32180172,93696.0,93686.0,0.3608]
[1732120908283,0.16711667,93688.0,93676.0,0.00160122]
[1732120908485,0.22043467,93677.0,93676.0,0.00160122]
[1732120908885,0.22043467,93677.0,93676.0,0.32013789]
[1732120909081,0.22043467,93677.0,93676.0,0.00160122]
[1732120909591,0.22043567,93677.0,93670.0,0.00932872]
[1732120909987,0.05332,93674.0,93670.0,0.00932872]
[1732120910480,0.16711667,93677.0,93670.0,0.00932872]
[1732120911091,0.16711667,93677.0,93667.0,0.07716332]
[1732120911299,0.05332,93674.0,93668.0,0.053323]
[1732120911488,0.16711667,93677.0,93667.0,0.02383932]
[1732120911683,0.053318,93678.0,93670.0,0.053322]
[1732120911898,0.3608,93692.0,93675.0,0.3608]
[1732120912093,0.3608,93700.0,93683.0,0.3608]
[1732120912299,0.053306,93699.0,93690.0,0.053311]
[1732120912598,0.0738,93710.0,93683.0,0.3608]
[1732120912599,0.0738,93710.0,93694.0,0.053308]
[1732120912793,0.053302,93705.0,93694.0,0.053308]
[1732120912997,0.053304,93703.0,93694.0,0.053308]
[1732120913989,0.053301,93707.0,93694.0,0.053308]
[1732120914297,0.02401831,93710.0,93695.0,0.16711667]
[1732120914488,0.3608,93714.0,93695.0,0.16711667]
[1732120914683,0.3608,93714.0,93695.0,0.7957403]
[1732120914992,0.005,93717.0,93697.0,0.053307]
[1732120915289,0.05829,93727.0,93718.0,0.053295]
[1732120915487,0.05329,93727.0,93718.0,0.053295]
[1732120916605,0.053293,93723.0,93712.0,0.0782]
[1732120916802,0.053294,93720.0,93712.0,0.0782]
[1732120917193,0.3608,93725.0,93712.0,0.0782]
[1732120917494,0.3608,93735.0,93726.0,0.05329]
[1732120917693,0.02437725,93743.0,93727.0,0.16711667]
[1732120917891,0.07765825,93743.0,93727.0,0.16711667]
[1732120918201,0.02437725,93743.0,93727.0,0.16711667]
[1732120918413,0.053281,93742.0,93727.0,0.16711667]
[1732120918591,0.414081,93742.0,93727.0,0.16711667]
[1732120918994,0.3608,93742.0,93727.0,0.16711667]
[1732120919191,0.053285,93737.0,93727.0,0.16711667]
[1732120919395,0.3608,93742.0,93727.0,0.16711667]
[1732120919699,0.053283,93739.0,93727.0,0.16711667]
[1732120920100,0.3608,93742.0,93727.0,0.16711667]
[1732120920300,0.3608,93742.0,93721.0,0.3608]
[1732120920490,0.053286,93734.0,93721.0,0.3608]
[1732120920694,0.3608,93742.0,93721.0,0.3608]
[1732120920997,0.3608,93742.0,93710.0,0.00012598]
[1732120920998,0.3608,93733.0,93710.0,0.00012598]
[1732120921191,0.3608,93733.0,93710.0,0.02386854]
[1732120921393,0.3608,93733.0,93710.0,0.00012598]
[1732120921394,0.053292,93724.0,93710.0,0.00012598]
[1732120921589,0.053294,93721.0,93710.0,0.00012598]
[1732120921798,0.3608,93733.0,93710.0,0.00012598]
[1732120921997,0.053296,93718.0,93716.0,0.02131762]
[1732120922298,0.053296,93718.0,93710.0,0.00012598]
[1732120922299,0.053299,93712.0,93710.0,0.00012598]
[1732120922803,0.3608,93711.0,93710.0,0.00012598]
[1732120925288,0.68092,93711.0,93710.0,0.00012598]
[1732120925489,0.75392,93711.0,93710.0,0.00012598]
[1732120925702,0.053315,93684.0,93682.0,0.3608]
[1732120925897,0.053319,93676.0,93674.0,0.0031213]
[1732120926097,0.053309,93694.0,93675.0,0.053319]
[1732120926296,0.3608,93695.0,93681.0,0.3608]
[1732120926497,0.3608,93695.0,93680.0,0.3608]
[1732120926690,0.053309,93694.0,93680.0,0.414116]
[1732120926895,0.3608,93698.0,93675.0,0.05340871]
[1732120927095,0.053313,93686.0,93675.0,8.971e-05]
[1732120927300,0.00160156,93701.0,93681.0,0.52791667]
[1732120927609,0.00160156,93701.0,93694.0,0.3608]
[1732120929004,0.00160156,93701.0,93699.0,0.414106]
[1732120929202,0.00010021,93711.0,93699.0,0.414106]
[1732120929706,0.00010021,93711.0,93699.0,0.3608]
[1732120930007,0.00010021,93711.0,93699.0,0.67941262]
[1732120930203,0.00010021,93711.0,93700.0,0.31861262]
[1732120930408,0.00010021,93711.0,93699.0,0.3608]
[1732120930409,0.00010021,93711.0,93699.0,0.67941262]
[1732120930601,0.00010021,93711.0,93700.0,0.31861262]
[1732120930802,0.00010021,93711.0,93699.0,0.67941262]
[1732120931310,0.00010021,93711.0,93699.0,0.3608]
[1732120931311,0.16711667,93705.0,93699.0,0.3608]
[1732120933009,0.16711667,93705.0,93682.0,0.00152]
[1732120933010,0.3608,93702.0,93682.0,0.00152]
[1732120933200,0.3608,93702.0,93676.0,0.3608]
[1732120933201,0.16711667,93690.0,93676.0,0.3608]
[1732120933403,0.16711667,93699.0,93676.0,0.38530242]
[1732120933705,0.16711667,93699.0,93683.0,0.02132597]
[1732120933901,0.0741,93701.0,93676.0,0.3608]
[1732120933902,0.16711667,93690.0,93676.0,0.3608]
[1732120934100,0.3608,93694.0,93676.0,0.3608]
[1732120934101,0.16711667,93679.0,93676.0,0.3608]
[1732120934801,0.3608,93677.0,93668.0,0.3608]
[1732120935003,0.3608,93677.0,93657.0,0.04614581]
[1732120935204,0.3608,93677.0,93657.0,0.02132597]
[1732120935205,0.0741,93676.0,93657.0,0.02132597]
[1732120935904,0.3608,93677.0,93657.0,0.02132597]
[1732120936208,0.3608,93677.0,93658.0,0.31861262]
[1732120936403,0.00011043,93678.0,93669.0,0.67941262]
[1732120936707,0.00011043,93678.0,93669.0,0.68093262]
[1732120937111,0.00011043,93678.0,93670.0,0.31861262]
[1732120937297,0.00011043,93678.0,93669.0,0.67941262]
[1732120937500,0.00011043,93678.0,93670.0,0.31861262]
[1732120937707,0.00011043,93678.0,93671.0,0.31861262]
[1732120937912,0.00011043,93678.0,93674.0,0.32021392]
[1732120938409,0.00011043,93678.0,93674.0,0.0016013]
[1732120938611,0.00011043,93678.0,93674.0,0.32021392]
[1732120938911,0.1672271,93678.0,93674.0,0.0016013]
[1732120939123,0.00011043,93678.0,93674.0,0.0016013]
[1732120940002,0.16711667,93677.0,93669.0,0.3608]
[1732120940205,0.31871667,93677.0,93669.0,0.3608]
[1732120940613,0.31871667,93677.0,93652.0,0.38248789]
[1732120940614,0.3608,93674.0,93652.0,0.31861262]
[1732120940819,0.3608,93674.0,93650.0,0.02132597]
[1732120940820,0.16711667,93661.0,93650.0,0.02132597]
[1732120941005,0.3608,93665.0,93650.0,0.02132597]
[1732120941006,0.16711667,93652.0,93650.0,0.02132597]
[1732120941204,0.16711667,93661.0,93646.0,0.00160168]
[1732120942008,0.16711667,93651.0,93646.0,0.00160168]
[1732120942215,0.16711667,93651.0,93633.0,0.31861262]
[1732120942420,0.16711667,93651.0,93637.0,0.3608]
[1732120943318,0.3608,93656.0,93637.0,0.3608]
[1732120943618,0.52791667,93670.0,93655.0,0.3608]
[1732120943816,0.1516,93677.0,93665.0,0.3608]